bitfinex-derivatives/quotes_SOLF0:USTF0_20260227
["timestamp","ask_amount","ask_price","bid_price","bid_amount"]
[1772210090493,9.85378112,82.243,82.204,17.18819067]
[1772210090693,9.85378112,82.242,82.204,17.18819067]
[1772210090892,10.0463439,82.244,82.204,17.18819067]
[1772210091190,10.01814357,82.242,82.191,17.18819067]
[1772210091393,10.01814357,82.24,82.191,17.18819067]
[1772210091591,10.01814357,82.238,82.191,17.18819067]
[1772210091788,10.03659724,82.236,82.191,17.18819067]
[1772210091987,9.84531776,82.235,82.191,17.18819067]
[1772210092194,10.03659724,82.233,82.191,17.18819067]
[1772210092390,10.03659724,82.231,82.191,17.18819067]
[1772210093194,9.83935936,82.23,82.179,10.9512]
[1772210093392,10.03659724,82.231,82.163,17.18819067]
[1772210093593,9.83874639,82.23,82.163,17.18819067]
[1772210093794,10.04411656,82.228,82.163,17.18819067]
[1772210094089,10.01671297,82.226,82.163,17.18819067]
[1772210094293,9.83874639,82.225,82.163,17.18819067]
[1772210094491,10.01671297,82.223,82.163,17.18819067]
[1772210094794,10.0169163,82.221,82.163,17.18819067]
[1772210095092,9.98984871,82.217,82.172,10.9522]
[1772210095293,9.98984871,82.217,82.163,17.18819067]
[1772210096784,9.98984871,82.217,82.14,55.22186299]
[1772210096785,9.98984871,82.217,82.165,17.18819067]
[1772210097795,9.98984871,82.217,82.167,17.18819067]
[1772210098299,9.98984871,82.217,82.169,17.18819067]
[1772210099796,10.9473,82.21,82.169,17.18819067]
[1772210100301,20.93614871,82.217,82.169,17.18819067]
[1772210100497,10.10524068,82.216,82.169,17.18819067]
[1772210100703,10.10525597,82.199,82.142,17.18819067]
[1772210100905,9.22186299,82.2,82.113,17.18819067]
[1772210100906,10.10525597,82.184,82.113,17.18819067]
[1772210101103,9.83325019,82.183,82.113,17.18819067]
[1772210101303,4.30753438,82.18,82.131,17.18819067]
[1772210101504,15.25883438,82.18,82.131,17.18819067]
[1772210102005,10.9521,82.174,82.131,17.18819067]
[1772210102200,4.30753438,82.17,82.131,17.18819067]
[1772210102705,4.30753438,82.16,82.113,17.18819067]
[1772210103094,10.954,82.159,82.114,10.9599]
[1772210103296,4.30753438,82.17,82.121,17.18819067]
[1772210103505,4.30753438,82.18,82.121,17.18819067]
[1772210103800,4.30753438,82.19,82.131,17.18819067]
[1772210104000,4.30753438,82.19,82.142,17.18819067]
[1772210104906,4.30753438,82.19,82.144,17.18819067]
[1772210105407,4.30753438,82.17,82.13,17.18819067]
[1772210106708,15.26003438,82.17,82.13,17.18819067]
[1772210108108,4.30753438,82.16,82.13,17.18819067]
[1772210113201,4.30753438,82.14,82.113,17.48829694]
[1772210113403,4.30753438,82.14,82.081,17.48829694]
[1772210113806,4.30753438,82.14,82.103,17.48829694]
[1772210114805,4.30753438,82.13,82.087,17.48829694]
[1772210115211,10.03175627,82.139,82.087,17.48829694]
[1772210116006,10.9579,82.13,82.087,17.48829694]
[1772210116209,10.03175627,82.139,82.087,17.48829694]
[1772210116615,10.03175627,82.139,82.09,17.48829694]
[1772210117209,9.2422681,82.15,82.09,17.48829694]
[1772210117513,9.89954505,82.153,82.09,17.48829694]
[1772210117809,9.89954505,82.153,82.108,17.48829694]
[1772210118508,9.89954505,82.153,82.109,10.9606]
[1772210118810,9.89954505,82.153,82.11,17.48829694]
[1772210119607,9.89954505,82.153,82.111,28.44859694]
[1772210119914,10.9538,82.161,82.112,17.48829694]
[1772210120314,10.9541,82.159,82.112,17.48829694]
[1772210120712,10.955,82.152,82.112,17.48829694]
[1772210121803,9.78180176,82.158,82.112,17.48829694]
[1772210122608,324.42221911,82.163,82.114,17.48829694]
[1772210123514,324.42221911,82.163,82.121,10.959]
[1772210123705,324.42221911,82.163,82.122,17.48829694]
[1772210125311,9.65135339,82.162,82.09,9.2422681]
[1772210125512,9.65135339,82.162,82.07,9.2422681]
[1772210125916,10.9562,82.143,82.07,9.2422681]
[1772210126123,9.65135339,82.162,82.07,9.2422681]
[1772210126313,9.65135339,82.162,82.044,170.6334]
[1772210126314,10.9552,82.15,82.113,10.9601]
[1772210126720,9.65135339,82.162,82.113,10.9601]
[1772210126917,324.42221911,82.163,82.113,10.9601]
[1772210127512,10.9543,82.157,82.117,17.48829694]
[1772210127717,324.42221911,82.163,82.117,17.48829694]
[1772210128914,10.9551,82.151,82.117,17.48829694]
[1772210130722,324.42221911,82.163,82.117,17.48829694]
[1772210131221,324.42221911,82.163,82.099,17.48829694]
[1772210131222,16.920779,82.162,82.099,17.48829694]
[1772210131720,324.42221911,82.163,82.1,10.9618]
[1772210131721,16.920779,82.153,82.1,10.9618]
[1772210132319,16.920779,82.15,82.099,17.48829694]
[1772210132521,16.920779,82.15,82.086,17.48829694]
[1772210133122,16.920779,82.13,82.072,17.48829694]
[1772210134527,16.920779,82.13,82.08,17.48829694]
[1772210135326,4.31473,82.12,82.08,17.48829694]
[1772210135921,16.920779,82.119,82.068,10.966]
[1772210136427,4.31473,82.11,82.068,10.966]
[1772210136626,4.31473,82.11,82.062,17.48829694]
[1772210136822,4.31473,82.1,82.062,17.48829694]
[1772210137025,21.235509,82.1,82.041,17.48829694]
[1772210137931,21.235509,82.1,82.044,10.9692]
[1772210138126,21.235509,82.1,82.045,17.48829694]
[1772210138523,10.962,82.099,82.047,17.48829694]
[1772210138725,10.962,82.099,82.05,4.31473]
[1772210138931,10.962,82.099,82.05,21.80302694]
[1772210139130,17.11905911,82.119,82.061,16.63608109]
[1772210139322,17.11905911,82.119,82.07,4.31473]
[1772210139522,17.11905911,82.119,82.061,16.63608109]
[1772210139727,4.31473,82.11,82.061,16.63608109]
[1772210140032,17.11905911,82.109,82.061,16.63608109]
[1772210140837,28.07975911,82.109,82.061,16.63608109]
[1772210141229,17.52107072,82.108,82.031,17.0675226]
[1772210141534,22.35852837,82.167,82.016,279.73]
[1772210141535,17.52107072,82.099,82.05,21.38254053]
[1772210141729,17.52107072,82.099,82.051,17.0675226]
[1772210141929,17.52107072,82.099,82.053,17.0675226]
[1772210143328,10.9622,82.098,82.053,17.0675226]
[1772210143534,17.52107072,82.099,82.053,17.0675226]
[1772210143836,10.9634,82.089,82.053,17.0675226]
[1772210144036,17.52107072,82.099,82.053,17.0675226]
[1772210144938,10.9624,82.097,82.053,17.0675226]
[1772210146437,17.52107072,82.099,82.055,17.0675226]
[1772210148339,17.52107072,82.099,82.063,10.9667]
[1772210151739,21.83608865,82.11,82.069,10.966]
[1772210152841,17.52107072,82.108,82.062,10.9668]
[1772210153143,17.52107072,82.108,82.062,17.0675226]
[1772210154040,17.52107072,82.108,82.068,10.9661]
[1772210155342,17.52107072,82.108,82.062,28.0344226]
[1772210155542,10.9611,82.106,82.062,28.0344226]
[1772210155744,17.52107072,82.105,82.062,28.0344226]
[1772210156339,17.52107072,82.103,82.062,17.0675226]
[1772210156645,21.83608865,82.1,82.055,10.9678]
[1772210157045,21.83608865,82.1,82.016,243.22]
[1772210157046,17.52107072,82.089,82.036,17.0675226]
[1772210157241,17.52107072,82.079,82.036,17.0675226]
[1772210157839,4.31501793,82.07,82.036,17.0675226]
[1772210158039,4.31501793,82.07,82.023,17.0675226]
[1772210158040,21.83608865,82.07,82.023,17.0675226]
[1772210158446,21.83608865,82.05,82.01,17.0675226]
[1772210158644,17.52107072,82.05,82.01,17.0675226]
[1772210159046,17.52107072,82.05,82.012,10.9736]
[1772210159844,17.52107072,82.05,82.01,17.0675226]
[1772210160148,17.52107072,82.047,81.986,17.0675226]
[1772210160752,10.9697,82.042,81.994,10.976]
[1772210161050,10.9697,82.042,81.995,17.0675226]
[1772210163150,17.52107072,82.047,81.995,17.0675226]
[1772210164050,17.52107072,82.047,82.004,10.9746]
[1772210164654,17.52107072,82.047,82.004,28.0421226]
[1772210164844,17.52107072,82.061,82.009,17.0675226]
[1772210165142,17.52107072,82.059,81.992,17.0675226]
[1772210165349,9.25877716,82.06,81.992,17.0675226]
[1772210165350,17.52107072,82.038,81.992,17.0675226]
[1772210166145,17.52107072,82.036,81.992,17.0675226]
[1772210166546,17.52107072,82.025,81.964,17.0675226]
[1772210167149,17.52107072,82.025,81.974,10.9787]
[1772210167749,17.52107072,82.019,81.95,17.0675226]
[1772210168146,17.52107072,82.019,81.938,17.0675226]
[1772210168347,17.52107072,82.002,81.95,17.0675226]
[1772210170553,17.52107072,82.002,81.936,16.66996655]
[1772210170752,17.52107072,82.002,81.923,16.66996655]
[1772210171050,17.52107072,82.002,81.858,171.0213]
[1772210171051,2.25744652,81.959,81.888,16.66996655]
[1772210171652,2.25744652,81.959,81.91,16.66996655]
[1772210172159,2.25744652,81.959,81.91,27.65716655]
[1772210172352,2.25744652,81.959,81.91,16.66996655]
[1772210172950,3.12267716,81.956,81.91,16.66996655]
[1772210173147,3.12267716,81.956,81.833,21.9952]
[1772210173148,3.12267716,81.919,81.821,16.66996655]
[1772210173357,3.12267716,81.899,81.821,16.66996655]
[1772210173555,3.12267716,81.893,81.821,16.66996655]
[1772210173954,3.12267716,81.893,81.78,46.0]
[1772210173955,1.44424559,81.818,81.706,16.75734489]
[1772210174258,1.44424559,81.818,81.65,11.98777843]
[1772210174259,9.25877716,81.79,81.711,26.89415946]
[1772210174450,10.9956,81.849,81.731,26.89415946]
[1772210174651,9.25877716,81.84,81.731,26.89415946]
[1772210175050,10.997,81.838,81.742,26.89402101]
[1772210175359,5.49004446,81.854,81.742,26.89402101]
[1772210175360,9.25877716,81.82,81.742,26.89402101]
[1772210175657,9.25877716,81.84,81.742,26.89402101]
[1772210175958,9.25877716,81.84,81.742,22.01402101]
[1772210176363,327.46841882,81.849,81.75,9.25877716]
[1772210176566,9.25877716,81.86,81.77,9.25877716]
[1772210176770,10.9903,81.888,81.79,9.25877716]
[1772210176957,9.25877716,81.9,81.79,9.25877716]
[1772210177159,9.25877716,81.9,81.79,11.0033]
[1772210177363,9.25877716,81.88,81.77,9.25877716]
[1772210177567,9.25877716,81.88,81.773,11.0056]
[1772210177865,10.9922,81.874,81.774,24.78556876]
[1772210178363,20.24887716,81.89,81.79,9.25877716]
[1772210178666,9.25877716,81.9,81.79,9.25877716]
[1772210179167,10.99,81.891,81.79,9.25877716]
[1772210179367,10.99,81.891,81.81,9.25877716]
[1772210179567,10.99,81.891,81.79,9.25877716]
[1772210180269,10.9916,81.878,81.791,19.82222974]
[1772210180659,9.25877716,81.88,81.791,19.82222974]
[1772210180972,10.9934,81.865,81.791,19.82222974]
[1772210181765,10.9915,81.879,81.791,19.82222974]
[1772210181968,9.25877716,81.9,81.791,19.82222974]
[1772210182768,9.25877716,81.88,81.791,19.82222974]
[1772210182968,9.25877716,81.9,81.801,19.75421821]
[1772210183163,10.9939,81.861,81.783,19.75421821]
[1772210184468,9.25877716,81.9,81.783,19.75421821]
[1772210184469,10.9921,81.874,81.783,19.75421821]
[1772210184866,10.9921,81.874,81.785,19.69951243]
[1772210185467,10.9938,81.862,81.785,19.69951243]
[1772210186071,10.9938,81.862,81.786,19.73217809]
[1772210186765,10.9921,81.875,81.788,19.73217809]
[1772210187063,325.30610706,81.876,81.788,19.73217809]
[1772210187473,325.30610706,81.876,81.76,45.76877716]
[1772210187474,10.9935,81.864,81.79,19.73173431]
[1772210187666,325.30610706,81.876,81.79,19.73173431]
[1772210188070,10.9923,81.873,81.794,19.73546479]
[1772210188570,10.9939,81.861,81.794,19.73546479]
[1772210189167,10.9939,81.861,81.784,11.0041]
[1772210189168,10.9923,81.873,81.796,19.73503797]
[1772210189369,325.30610706,81.876,81.796,19.73503797]
[1772210191675,10.9922,81.874,81.808,11.0009]
[1772210191875,325.30610706,81.876,81.808,11.0009]
[1772210192066,325.30610706,81.876,81.808,30.63410513]
[1772210192272,10.9935,81.864,81.808,19.63320513]
[1772210192672,325.30610706,81.876,81.781,19.63320513]
[1772210192673,9.25877716,81.86,81.781,19.63320513]
[1772210193977,10.996,81.846,81.781,19.63320513]
[1772210194375,9.25877716,81.86,81.781,19.63320513]
[1772210194876,9.25877716,81.84,81.781,19.63320513]
[1772210195273,9.25877716,81.84,81.764,19.6351728]
[1772210195474,9.25877716,81.82,81.746,19.6351728]
[1772210195774,9.25877716,81.84,81.746,19.6351728]
[1772210196069,9.25877716,81.84,81.769,19.62962807]
[1772210196274,5.49778925,81.854,81.769,19.62962807]
[1772210196275,9.25877716,81.83,81.769,19.62962807]
[1772210198275,20.25687716,81.83,81.769,19.62962807]
[1772210198580,9.25877716,81.85,81.769,19.62962807]
[1772210198877,10.9968,81.84,81.779,19.63836942]
[1772210199877,10.9968,81.84,81.782,19.60932185]
[1772210200378,10.9955,81.849,81.782,19.60932185]
[1772210200679,9.25877716,81.85,81.785,19.60932185]
[1772210201380,9.30809532,81.86,81.785,19.60932185]
[1772210201674,10.9957,81.848,81.787,19.60756173]
[1772210201879,9.30809532,81.86,81.787,19.60756173]
[1772210202782,10.9955,81.849,81.789,19.60811838]
[1772210203374,10.9966,81.841,81.789,19.60811838]
[1772210203582,9.30809532,81.86,81.789,19.60811838]
[1772210203777,10.9966,81.841,81.789,19.60811838]
[1772210204883,10.9977,81.833,81.789,19.60811838]
[1772210205376,10.9988,81.825,81.741,19.56507664]
[1772210205883,10.9988,81.825,81.773,19.55141664]
[1772210207076,9.30809532,81.86,81.773,19.55141664]
[1772210207972,10.9963,81.843,81.792,19.568285]
[1772210208173,9.30809532,81.86,81.792,19.568285]
[1772210208375,325.30610706,81.876,81.792,19.568285]
[1772210208781,10.9928,81.869,81.824,10.9988]
[1772210208979,325.30610706,81.876,81.825,19.56884694]
[1772210209182,9.30809532,81.9,81.825,19.56884694]
[1772210209379,9.30809532,81.96,81.852,19.56884694]
[1772210209681,9.30809532,81.94,81.852,19.56884694]
[1772210209880,10.9868,81.914,81.855,19.60396462]
[1772210210183,2.12478859,81.963,81.855,19.60396462]
[1772210210381,2.12478859,81.963,81.84,45.81809532]
[1772210210382,10.9865,81.916,81.857,19.60396462]
[1772210210682,9.30809532,81.93,81.857,19.60396462]
[1772210211679,9.30809532,81.91,81.857,19.60396462]
[1772210211885,9.30809532,81.91,81.821,19.55694815]
[1772210212380,10.9897,81.892,81.828,19.55694815]
[1772210212777,9.30809532,81.94,81.87,10.9926]
[1772210212982,9.30809532,81.94,81.858,19.55749778]
[1772210213377,10.9885,81.901,81.858,19.55749778]
[1772210213577,9.30809532,81.92,81.841,19.55749778]
[1772210214083,10.9899,81.891,81.842,10.9964]
[1772210214384,10.9899,81.891,81.843,19.71292489]
[1772210214982,0.20652321,81.881,81.826,19.71332429]
[1772210215982,10.9932,81.867,81.826,19.71332429]
[1772210217174,10.9942,81.859,81.808,19.75304411]
[1772210217579,9.61290207,81.879,81.808,19.75304411]
[1772210217881,10.9964,81.843,81.808,19.75304411]
[1772210218085,9.61290207,81.877,81.808,19.75304411]
[1772210218384,9.61290207,81.876,81.808,19.75304411]
[1772210218575,10.9953,81.851,81.808,19.75304411]
[1772210219281,10.9942,81.859,81.808,19.75304411]
[1772210220585,9.30809532,81.88,81.808,19.75304411]
[1772210220785,9.65842426,81.879,81.808,19.75304411]
[1772210220986,9.65842426,81.878,81.808,19.75304411]
[1772210221187,9.30809532,81.88,81.779,11.0048]
[1772210221188,14.19889406,81.857,81.779,11.0048]
[1772210221383,14.19889406,81.856,81.77,9.30809532]
[1772210221783,10.996,81.846,81.77,9.30809532]
[1772210221984,14.19889406,81.856,81.77,9.30809532]
[1772210223189,14.19889406,81.856,81.771,15.99492395]
[1772210223987,10.998,81.831,81.775,11.0054]
[1772210224293,14.19889406,81.856,81.776,15.99492395]
[1772210224693,14.22800302,81.873,81.808,15.99492395]
[1772210224885,0.20652321,81.881,81.811,15.99492395]
[1772210225288,14.42271892,81.881,81.821,15.99492395]
[1772210226293,0.20652321,81.881,81.823,15.99492395]
[1772210227795,0.20652321,81.881,81.825,15.99492395]
[1772210229391,0.20652321,81.881,81.836,15.99492395]
[1772210230395,0.20652321,81.881,81.839,15.8827273]
[1772210230691,13.94816553,81.915,81.839,15.8827273]
[1772210231694,14.11837796,81.898,81.84,10.9966]
[1772210231993,14.11837796,81.898,81.841,15.8827273]
[1772210232689,14.11837796,81.898,81.824,15.8827273]
[1772210233889,10.9917,81.877,81.825,26.8814273]
[1772210234385,0.20660701,81.864,81.825,26.8814273]
[1772210234895,0.20660701,81.864,81.825,15.8827273]
[1772210235795,11.20020701,81.864,81.825,15.8827273]
[1772210238396,10.9944,81.858,81.825,15.8827273]
[1772210241591,10.9954,81.85,81.825,15.8827273]
[1772210241994,13.88715518,81.863,81.808,15.8827273]
[1772210242999,13.8870789,81.859,81.771,15.8827273]
[1772210243597,10.9969,81.839,81.8,15.8827273]
[1772210243794,13.77666468,81.838,81.753,15.8827273]
[1772210243995,13.77666468,81.836,81.763,15.8827273]
[1772210244495,13.77666468,81.836,81.783,15.8827273]
[1772210244999,13.77666468,81.836,81.733,22.0221]
[1772210245000,11.0,81.816,81.761,15.8827273]
[1772210245597,11.0009,81.809,81.761,15.8827273]
[1772210246392,11.0009,81.809,81.74,9.30809532]
[1772210246393,10.9999,81.816,81.77,26.8888273]
[1772210246797,13.811973,81.815,81.77,15.8827273]
[1772210247102,13.811973,81.815,81.721,2.12739293]
[1772210247103,13.811973,81.815,81.741,15.8827273]
[1772210247699,9.30809532,81.82,81.741,15.8827273]
[1772210247700,11.0041,81.786,81.741,15.8827273]
[1772210248004,13.8030798,81.799,81.741,15.8827273]
[1772210248504,11.0037,81.789,81.743,11.0097]
[1772210248707,13.843767,81.819,81.744,15.8827273]
[1772210249906,13.843767,81.819,81.752,15.8827273]
[1772210250104,14.06402766,81.849,81.752,15.8827273]
[1772210250511,10.9966,81.841,81.786,11.0039]
[1772210250806,14.06402766,81.849,81.787,15.8827273]
[1772210251314,10.9975,81.834,81.787,15.8827273]
[1772210251610,14.06402766,81.849,81.787,15.8827273]
[1772210252802,14.72566128,81.842,81.789,15.8827273]
[1772210253206,14.72566128,81.863,81.789,15.8827273]
[1772210253914,10.9952,81.851,81.798,15.8827273]
[1772210254610,14.57088453,81.861,81.798,15.8827273]
[1772210256513,10.9952,81.852,81.8,15.8827273]
[1772210257916,10.9952,81.852,81.802,15.8827273]
[1772210259516,10.9952,81.852,81.805,11.0013]
[1772210259715,10.9941,81.859,81.806,16.714677]
[1772210260114,14.57088453,81.861,81.806,16.714677]
[1772210260312,10.9932,81.867,81.806,16.714677]
[1772210260617,14.21556606,81.876,81.831,26.8078564]
[1772210260920,10.993,81.868,81.831,15.8099564]
[1772210261412,25.20746606,81.876,81.831,15.8099564]
[1772210261818,14.21556606,81.876,81.831,15.8099564]
[1772210262010,14.21556606,81.876,81.817,15.8099564]
[1772210262721,14.16670118,81.889,81.817,15.8099564]
[1772210264016,10.9924,81.873,81.821,15.8099564]
[1772210264519,10.9924,81.873,81.828,15.8099564]
[1772210265218,10.9924,81.873,81.83,10.998]
[1772210265511,10.9924,81.873,81.83,26.8079564]
[1772210266618,10.9924,81.873,81.833,15.8099564]
[1772210267113,10.9931,81.867,81.833,15.8099564]
[1772210267319,14.03428366,81.876,81.815,15.8099564]
[1772210267618,9.30064935,81.89,81.815,15.8099564]
[1772210267619,14.24089067,81.864,81.815,15.8099564]
[1772210267817,14.24089067,81.864,81.775,15.8099564]
[1772210268220,14.00515048,81.839,81.775,15.8099564]
[1772210269318,10.9979,81.831,81.788,15.8099564]
[1772210269620,9.30064935,81.85,81.788,15.8099564]
[1772210269820,10.9959,81.846,81.805,11.0013]
[1772210270118,10.9959,81.846,81.806,15.8099564]
[1772210270921,10.9959,81.846,81.807,11.0011]
[1772210271216,10.9969,81.839,81.771,15.8099564]
[1772210271423,10.9969,81.839,81.796,11.0025]
[1772210271613,14.00595716,81.838,81.796,11.0025]
[1772210272322,25.00295716,81.838,81.796,11.0025]
[1772210274522,14.00595716,81.838,81.802,11.0017]
[1772210274727,10.9961,81.845,81.802,11.0017]
[1772210275021,9.30064935,81.85,81.802,11.0017]
[1772210275222,13.85025792,81.849,81.793,11.0029]
[1772210275823,10.9978,81.832,81.792,15.8099564]
[1772210276419,10.9978,81.832,81.792,26.8130564]
[1772210277125,10.9986,81.826,81.792,15.8099564]
[1772210277435,13.79462479,81.831,81.777,15.8099564]
[1772210279036,10.9995,81.82,81.778,15.8099564]
[1772210280134,10.9995,81.82,81.78,11.0047]
[1772210280433,13.79462479,81.831,81.778,15.8099564]
[1772210280637,13.72548839,81.829,81.731,15.8099564]
[1772210281037,13.69911768,81.808,81.755,15.8099564]
[1772210281228,13.69911768,81.823,81.755,15.8099564]
[1772210281733,13.69911768,81.823,81.73,9.30064935]
[1772210281734,13.69911768,81.823,81.763,15.8099564]
[1772210282237,11.0008,81.81,81.763,15.8099564]
[1772210282937,11.0018,81.802,81.763,15.8099564]
[1772210283740,13.80250655,81.829,81.773,15.8099564]
[1772210284740,11.0001,81.815,81.773,15.8099564]
[1772210285342,10.999,81.823,81.773,15.8099564]
[1772210285539,13.80250655,81.829,81.776,11.0053]
[1772210285743,13.80250655,81.829,81.773,15.8099564]
[1772210285947,11.0,81.816,81.773,15.8099564]
[1772210286338,13.80250655,81.829,81.776,15.8099564]
[1772210286840,11.0725657,81.872,81.776,15.8099564]
[1772210286841,13.25633029,81.844,81.776,15.8099564]
[1772210287041,13.25633029,81.858,81.776,15.8099564]
[1772210287243,3.47434065,81.85,81.791,15.8099564]
[1772210287440,3.47434065,81.84,81.791,15.8099564]
[1772210287747,3.47434065,81.84,81.801,15.8099564]
[1772210287935,3.47434065,81.87,81.811,15.8099564]
[1772210288239,3.47434065,81.87,81.821,15.8099564]
[1772210288452,3.47434065,81.87,81.828,15.8099564]
[1772210289243,10.9927,81.87,81.828,15.8099564]
[1772210290343,10.9936,81.863,81.828,15.8099564]
[1772210290649,13.26309169,81.875,81.828,15.8099564]
[1772210292038,10.9927,81.871,81.828,15.8099564]
[1772210294146,11.20010701,81.864,81.828,15.8099564]
[1772210295039,11.20010701,81.864,81.774,297.0]
[1772210295040,13.52652089,81.863,81.81,15.96315152]
[1772210295940,10.9966,81.841,81.81,15.96315152]
[1772210296140,13.52652089,81.863,81.81,15.96315152]
[1772210296542,13.52652089,81.863,81.77,9.30033645]
[1772210296543,13.52652089,81.863,81.812,15.96315152]
[1772210296745,0.20660701,81.864,81.812,15.96315152]
[1772210297553,0.20660701,81.864,81.82,15.96315152]
[1772210298251,0.20660701,81.864,81.823,15.96315152]
[1772210300655,0.20660701,81.864,81.823,26.96205152]
[1772210300847,12.63266561,81.892,81.824,15.96315152]
[1772210301950,10.9917,81.877,81.833,15.96315152]
[1772210302351,12.63266561,81.892,81.833,15.96315152]
[1772210303356,10.9906,81.885,81.835,10.9973]
[1772210303560,10.9906,81.885,81.836,15.96315152]
[1772210304252,12.77782251,81.889,81.811,15.96315152]
[1772210304559,9.6374396,81.888,81.811,15.96315152]
[1772210304751,12.77782251,81.869,81.812,15.96315152]
[1772210305853,10.9944,81.858,81.813,11.0002]
[1772210306059,10.9944,81.858,81.814,15.96315152]
[1772210306459,10.9944,81.858,81.816,10.9999]
[1772210306655,10.9944,81.858,81.817,15.96315152]
[1772210309658,12.93630919,81.85,81.764,15.96315152]
[1772210309857,12.93630919,81.85,81.766,15.96315152]
[1772210310060,13.12468227,81.866,81.781,15.96315152]
[1772210310255,10.9944,81.857,81.813,15.96315152]
[1772210311961,10.9944,81.857,81.815,11.0]
[1772210312255,10.9934,81.865,81.816,15.96315152]
[1772210312452,13.15689595,81.886,81.816,15.96315152]
[1772210312855,10.993,81.868,81.831,15.96315152]
[1772210313058,13.15689595,81.886,81.831,15.96315152]
[1772210313655,10.9927,81.87,81.831,15.96315152]
[1772210315061,13.15689595,81.886,81.831,15.96315152]
[1772210315764,13.15689595,81.886,81.832,15.96315152]
[1772210316962,10.9926,81.871,81.832,15.96315152]
[1772210317365,10.993,81.868,81.832,15.96315152]
[1772210321268,4.33977157,81.84,81.77,22.012]
[1772210321456,4.33977157,81.84,81.78,4.33977157]
[1772210321662,15.54296079,81.849,81.809,11.0007]
[1772210322066,15.54296079,81.849,81.79,4.33977157]
[1772210322562,10.9964,81.842,81.808,11.0009]
[1772210323363,15.54296079,81.849,81.802,14.80578494]
[1772210323364,4.33977157,81.84,81.802,14.80578494]
[1772210324467,15.54296079,81.849,81.802,14.80578494]
[1772210324669,10.9965,81.842,81.802,14.80578494]
[1772210325372,10.9971,81.838,81.802,14.80578494]
[1772210325571,3.47433561,81.84,81.805,14.80578494]
[1772210326073,3.47433561,81.86,81.819,10.9994]
[1772210326471,10.9967,81.841,81.805,14.80578494]
[1772210326771,3.47433561,81.84,81.792,14.80578494]
[1772210326971,3.47433561,81.83,81.792,14.80578494]
[1772210327470,3.47433561,81.83,81.794,11.0028]
[1772210327471,10.9982,81.829,81.794,11.0028]
[1772210328068,3.47433561,81.81,81.776,14.80578494]
[1772210329162,3.47433561,81.8,81.763,312.05170727]
[1772210329472,15.54296079,81.81,81.763,312.05170727]
[1772210329972,15.54296079,81.81,81.763,14.80578494]
[1772210330175,11.0024,81.798,81.748,14.80578494]
[1772210330375,15.54296079,81.797,81.748,14.80578494]
[1772210331872,11.003,81.794,81.752,11.0084]
[1772210332073,21.9948,81.835,81.701,36.51]
[1772210332074,15.54296079,81.793,81.738,14.80578494]
[1772210332677,11.0033,81.791,81.744,11.0095]
[1772210332875,11.0033,81.791,81.744,25.81528494]
[1772210333074,15.54296079,81.793,81.744,25.81528494]
[1772210333276,11.0042,81.785,81.746,11.0092]
[1772210333575,15.54296079,81.793,81.746,14.80578494]
[1772210334383,11.0018,81.802,81.755,14.80578494]
[1772210334681,24.86012923,81.82,81.755,14.80578494]
[1772210334869,15.54296079,81.819,81.755,14.80578494]
[1772210335878,11.0007,81.811,81.765,11.0067]
[1772210337079,11.0016,81.804,81.757,11.0077]
[1772210337484,15.54296079,81.822,81.758,14.80578494]
[1772210337685,15.54296079,81.813,81.758,14.80578494]
[1772210338679,9.31716844,81.84,81.758,14.80578494]
[1772210338680,15.54296079,81.839,81.758,14.80578494]
[1772210339874,15.54296079,81.813,81.758,14.80578494]
[1772210340884,15.54296079,81.795,81.746,11.0092]
[1772210341982,26.54666079,81.789,81.746,11.0092]
[1772210342284,26.54666079,81.789,81.745,14.80578494]
[1772210342881,11.0043,81.784,81.745,14.80578494]
[1772210343283,15.54296079,81.783,81.731,25.81708494]
[1772210343482,15.54296079,81.783,81.731,14.80578494]
[1772210343882,15.54296079,81.783,81.738,14.80578494]
[1772210344484,9.31716844,81.8,81.738,14.80578494]
[1772210344485,11.0031,81.793,81.738,14.80578494]
[1772210344984,15.54296079,81.796,81.738,14.80578494]
[1772210345191,11.0012,81.807,81.738,14.80578494]
[1772210345485,26.54416079,81.807,81.738,14.80578494]
[1772210345692,11.0015,81.805,81.763,11.007]
[1772210346793,11.0023,81.799,81.757,14.80578494]
[1772210347385,11.0034,81.791,81.757,14.80578494]
[1772210347790,15.54296079,81.806,81.757,14.80578494]
[1772210347991,15.54296079,81.806,81.742,14.80578494]
[1772210349291,15.54296079,81.806,81.745,14.80578494]
[1772210350693,11.0038,81.787,81.747,11.0091]
[1772210351293,11.0038,81.787,81.747,26.64036221]
[1772210352788,11.0038,81.787,81.748,15.63126221]
[1772210353191,11.0038,81.787,81.751,15.63126221]
[1772210354084,11.0046,81.781,81.751,15.63126221]